fUSD/lending_fUSD_20251212
["ID","MTS","AMOUNT","RATE_DAILY","PERIOD"]
[398292243,1765500641587,-151.0,0.0002197,2]
[398292244,1765500641602,-151.0,0.0002197,2]
[398292245,1765500641617,-1201.682437,0.0002197,2]
[398292246,1765500641633,-1201.682437,0.0002197,2]
[398292247,1765500641648,-1201.682437,0.0002197,2]
[398292248,1765500641663,-1201.682437,0.0002197,2]
[398292249,1765500641678,-80913.0528678,0.00021971,2]
[398292250,1765500641693,-151.0,0.00021971,2]
[398292251,1765500641707,-151.0,0.00021971,2]
[398292252,1765500641723,-151.0,0.00021971,2]
[398292253,1765500641737,-266.930264,0.00021971,2]
[398292254,1765500641752,-151.0,0.00021971,2]
[398292255,1765500641767,-203.759264,0.00021971,2]
[398292256,1765500641781,-411.319007,0.00021971,2]
[398292257,1765500641796,-411.319007,0.00021971,2]
[398292258,1765500641820,-411.319007,0.00021971,2]
[398292259,1765500641839,-411.319007,0.00021971,2]
[398292260,1765500641857,-151.0,0.00021971,2]
[398292261,1765500641874,-151.0,0.00021971,2]
[398292262,1765500641891,-1201.682437,0.00021971,2]
[398292263,1765500641908,-1201.682437,0.00021971,2]
[398292264,1765500641924,-1201.682437,0.00021971,2]
[398292265,1765500641939,-1201.682437,0.00021971,2]
[398292266,1765500641956,-151.0,0.00021971,2]
[398292267,1765500641971,-151.0,0.00021971,2]
[398292268,1765500641987,-151.0,0.00021971,2]
[398292269,1765500642002,-151.0,0.00021971,2]
[398292270,1765500642017,-151.0,0.00021971,2]
[398292271,1765500642033,-245.062125,0.00021971,2]
[398292272,1765500642048,-151.0,0.00021971,2]
[398292273,1765500642065,-1058.2591832,0.00021992,2]
[398292274,1765500642081,-6942.43679,0.00022,2]
[398292275,1765500642095,-151.05,0.00022491,2]
[398292276,1765500642111,-210.13,0.00022719,2]
[398292277,1765500642125,-1000.0,0.00023852,2]
[398292278,1765500642140,-2334.00908332,0.00023932,2]
[398292279,1765500642156,-250.52611129,0.00024,2]
[398292280,1765500642170,-6942.43679,0.00024,2]
[398292281,1765500642186,-80913.0528678,0.00024055,2]
[398292282,1765500642200,-151.0,0.00024055,2]
[398292283,1765500642216,-151.0,0.00024055,2]
[398292284,1765500642230,-151.0,0.00024055,2]
[398292285,1765500642245,-151.0,0.00024055,2]
[398292286,1765500642259,-411.319007,0.00024055,2]
[398292287,1765500642273,-411.319007,0.00024055,2]
[398292288,1765500642287,-411.319007,0.00024055,2]
[398292289,1765500642302,-411.319007,0.00024055,2]
[398292290,1765500642317,-151.0,0.00024055,2]
[398292291,1765500642332,-151.0,0.00024055,2]
[398292292,1765500642347,-1201.682437,0.00024055,2]
[398292293,1765500642361,-1201.682437,0.00024055,2]
[398292294,1765500642379,-1201.682437,0.00024055,2]
[398292295,1765500642393,-1201.682437,0.00024055,2]
[398292296,1765500642408,-151.0,0.00024055,2]
[398292297,1765500642423,-151.0,0.00024055,2]
[398292298,1765500642437,-211.315199,0.00024055,2]
[398292299,1765500642453,-151.0,0.00024055,2]
[398292300,1765500642469,-151.0,0.00024055,2]
[398292301,1765500642484,-151.0,0.00024055,2]
[398292302,1765500642498,-688.07,0.00024084,2]
[398292303,1765500642512,-1058.2591832,0.00024086,2]
[398292304,1765500642527,-7114.1817313,0.00024094,2]
[398292305,1765500642542,-480.8162296,0.00024632,2]
[398292306,1765500642556,-151.0,0.00024658,2]
[398292307,1765500642571,-282.982571,0.00024658,2]
[398292308,1765500642586,-1000.0,0.00024999,3]
[398292309,1765500642602,-3066.20424653,0.00025,2]
[398292310,1765500642615,-151.0,0.00025,7]
[398292311,1765500642630,-161.3,0.00025094,2]
[398292312,1765500642650,-151.0,0.000257,7]
[398292313,1765500642665,-151.0,0.000257,7]
[398292314,1765500642680,-392.94701014,0.000257,2]
[398292315,1765500642695,-392.94701014,0.000257,2]
[398292316,1765500642959,-151.0,0.000257,7]
[398292317,1765500642968,-151.0,0.000257,7]
[398292318,1765500642978,-6942.43678,0.00026,2]
[398292319,1765500642987,-1000.0,0.00026237,2]
[398292320,1765500642998,-7114.1817313,0.00026318,2]
[398292321,1765500643007,-2334.00908332,0.00026496,2]
[398292322,1765500643017,-340.11,0.00026676,2]
[398292323,1765500643027,-151.0,0.00027397,7]
[398292324,1765500643036,-411.319007,0.00027397,7]
[398292325,1765500643046,-411.319007,0.00027397,7]
[398292326,1765500643055,-411.319007,0.00027397,7]
[398292327,1765500643065,-411.319015,0.00027397,7]
[398292328,1765500643075,-151.0,0.00027397,7]
[398292329,1765500643084,-1201.682437,0.00027397,7]
[398292330,1765500643094,-1201.682437,0.00027397,7]
[398292331,1765500643103,-1201.682437,0.00027397,7]
[398292332,1765500643112,-1201.682446,0.00027397,7]
[398292333,1765500643121,-151.0,0.00027397,7]
[398292334,1765500643131,-153.678909,0.00027397,7]
[398292335,1765500643140,-577.247024,0.00027397,7]
[398292336,1765500643149,-577.247024,0.00027397,7]
[398292337,1765500643158,-577.247024,0.00027397,7]
[398292338,1765500643168,-577.247024,0.00027397,7]
[398292339,1765500643178,-577.247024,0.00027397,7]
[398292340,1765500643187,-577.247024,0.00027397,7]
[398292341,1765500643197,-577.247024,0.00027397,7]
[398292342,1765500643206,-577.247024,0.00027397,7]
[398292343,1765500643215,-577.247024,0.00027397,7]
[398292344,1765500643224,-577.247024,0.00027397,7]
[398292345,1765500643234,-577.247024,0.00027397,7]
[398292346,1765500643243,-577.247024,0.00027397,7]
[398292347,1765500643253,-577.247024,0.00027397,7]
[398292348,1765500643262,-577.247024,0.00027397,7]
[398292349,1765500643272,-577.247024,0.00027397,7]
[398292350,1765500643282,-577.247024,0.00027397,7]
[398292351,1765500643292,-577.247024,0.00027397,7]
[398292352,1765500643302,-577.247024,0.00027397,7]
[398292353,1765500643312,-577.247024,0.00027397,7]
[398292354,1765500643325,-577.247026,0.00027397,7]
[398292355,1765500643334,-6942.43679,0.00028,2]
[398292356,1765500643343,-500.0,0.00028,30]
[398292357,1765500643353,-5554.62,0.00028279,2]
[398292358,1765500643363,-7114.1817313,0.00028541,2]
[398292359,1765500643377,-458.03,0.000286,14]
[398292360,1765500643387,-1000.0,0.00028622,2]
[398292361,1765500643396,-310.64,0.00028722,2]
[398292362,1765500643406,-500.0,0.00028999,30]
[398292363,1765500643417,-2334.00908332,0.0002906,2]
[398292364,1765500643427,-2641.5,0.0002929,30]
[398292365,1765500643436,-509.39630906,0.0002929,30]
[398292366,1765500643445,-61041.0,0.00029291,2]
[398292367,1765500643456,-151.0,0.00029291,7]
[398292368,1765500643465,-151.0,0.00029291,7]
[398292369,1765500643474,-7022.28727157,0.0003,2]
[398292370,1765500643484,-259.6171671,0.0003,30]
[398292371,1765500643494,-663.32399467,0.0003009,3]
[398292372,1765500643503,-1500.0,0.000301,2]
[398292373,1765500643513,-616.29,0.00030296,2]
[398292374,1765500643522,-151.90588802,0.00030738,30]
[398292375,1765500643532,-250.0,0.00030742,2]
[398292376,1765500643541,-210.13,0.00030764,2]
[398292377,1765500643550,-7114.1817313,0.00030764,2]
[398292378,1765500643560,-1208.83,0.00030777,30]
[398292379,1765500643569,-150.0,0.00030832,3]
[398292380,1765500643579,-150.77462243,0.00030832,3]
[398292381,1765500643589,-150.0,0.00030832,3]
[398292382,1765500643598,-150.0,0.00030832,3]
[398292383,1765500643607,-150.0,0.00030832,3]
[398292384,1765500643616,-250.0,0.00030832,3]
[398292385,1765500643626,-150.0,0.00030832,2]
[398292386,1765500643635,-150.0,0.00030832,3]
[398292387,1765500643645,-150.0,0.00030832,3]
[398292388,1765500643654,-150.0,0.00030832,3]
[398292389,1765500643663,-150.0,0.00030832,2]
[398292390,1765500643673,-627.0,0.00030832,3]
[398292391,1765500643681,-500.0,0.00030832,3]
[398292392,1765500643691,-202.83304397,0.00030969,3]
[398292393,1765500643700,-200.0,0.00030969,3]
[398292394,1765500643710,-200.0,0.00030969,3]
[398292395,1765500643719,-627.0,0.00030969,3]
[398292396,1765500643728,-500.0,0.00030969,3]
[398292397,1765500643738,-164.0,0.00031,60]
[398292398,1765500643747,-627.0,0.00031106,3]
[398292399,1765500643757,-500.0,0.00031106,3]
[398292400,1765500643767,-627.0,0.00031243,3]
[398292401,1765500643777,-500.0,0.00031243,3]
[398292402,1765500643787,-627.0,0.0003138,3]
[398292403,1765500643797,-500.0,0.0003138,3]
[398292404,1765500643807,-163.99,0.00031507,120]
[398292405,1765500643817,-1326.64798934,0.00031517,3]
[398292406,1765500643827,-627.0,0.00031517,3]
[398292407,1765500643836,-585.42311603,0.00031517,3]
[398292408,1765500643846,-300.0,0.00031527,2]
[398292409,1765500643855,-151.0,0.00031527,2]
[398292410,1765500643865,-151.0,0.00031527,2]
[398292411,1765500643875,-151.0,0.00031527,2]
[398292412,1765500643885,-1606.0,0.00031527,2]
[398292413,1765500643895,-500.0,0.00031527,2]
[398292414,1765500643905,-500.0,0.00031527,2]
[398292415,1765500643915,-500.0,0.00031527,2]
[398292416,1765500643925,-574.12855637,0.00031527,2]
[398292417,1765500643935,-500.0,0.00031527,2]
[398292418,1765500643945,-250.0,0.00031527,2]
[398292419,1765500643955,-773.0,0.00031527,2]
[398292420,1765500643965,-500.0,0.00031527,2]
[398292421,1765500643974,-500.0,0.00031527,2]
[398292422,1765500643984,-250.0,0.00031527,2]
[398292423,1765500643994,-151.0,0.00031527,2]
[398292424,1765500644004,-258.29978054,0.00031527,2]
[398292425,1765500644014,-500.0,0.00031527,2]
[398292426,1765500644023,-500.0,0.00031527,2]
[398292427,1765500644033,-500.0,0.00031527,2]
[398292428,1765500644043,-500.0,0.00031527,2]
[398292429,1765500644052,-500.0,0.00031527,2]
[398292430,1765500644062,-1000.0,0.00031527,2]
[398292431,1765500644072,-1000.0,0.00031527,2]
[398292432,1765500644082,-218.91418656,0.00031527,2]
[398292433,1765500644096,-1000.0,0.00031527,2]
[398292434,1765500644105,-1000.0,0.00031527,2]
[398292435,1765500644114,-1000.0,0.00031527,2]
[398292436,1765500644123,-1000.0,0.00031527,2]
[398292437,1765500644132,-1000.0,0.00031527,2]
[398292438,1765500644141,-1000.0,0.00031527,2]
[398292439,1765500644151,-578.20924308,0.00031527,2]
[398292440,1765500644160,-1000.0,0.00031527,2]
[398292441,1765500644170,-1000.0,0.00031527,2]
[398292442,1765500644180,-1000.0,0.00031527,2]
[398292443,1765500644189,-1000.0,0.00031527,2]
[398292444,1765500644199,-1000.0,0.00031527,2]
[398292445,1765500644209,-1000.0,0.00031527,2]
[398292446,1765500644219,-1000.0,0.00031527,2]
[398292447,1765500644228,-1000.0,0.00031527,2]
[398292448,1765500644238,-1000.0,0.00031527,2]
[398292449,1765500644248,-500.0,0.00031527,2]
[398292450,1765500644257,-1000.0,0.00031527,2]
[398292451,1765500644267,-1000.0,0.00031527,2]
[398292452,1765500644276,-1000.0,0.00031527,2]
[398292453,1765500644285,-500.0,0.00031527,2]
[398292454,1765500644295,-500.0,0.00031527,2]
[398292455,1765500644304,-1000.0,0.00031527,2]
[398292456,1765500644313,-1000.0,0.00031527,2]
[398292457,1765500644323,-500.0,0.00031527,2]
[398292458,1765500644332,-1000.0,0.00031527,2]
[398292459,1765500644341,-1000.0,0.00031527,2]
[398292460,1765500644351,-500.0,0.00031527,2]
[398292461,1765500644360,-200.0,0.00031527,2]
[398292462,1765500644371,-1000.0,0.00031527,2]
[398292463,1765500644383,-500.0,0.00031527,2]
[398292464,1765500644392,-1000.0,0.00031527,2]
[398292465,1765500644402,-721.12765535,0.00031527,2]
[398292466,1765500644411,-207.4,0.00031527,2]
[398292467,1765500644421,-500.0,0.00031527,2]
[398292468,1765500644430,-1000.0,0.00031527,2]
[398292469,1765500644439,-500.0,0.00031527,2]
[398292470,1765500644450,-1000.0,0.00031527,2]
[398292471,1765500644459,-500.0,0.00031527,2]
[398292472,1765500644468,-215.0738,0.00031527,2]
[398292473,1765500644477,-500.0,0.00031527,2]
[398292474,1765500644487,-223.0315306,0.00031527,2]
[398292475,1765500644497,-500.0,0.00031527,2]
[398292476,1765500644506,-500.0,0.00031527,2]
[398292477,1765500644515,-1000.0,0.00031527,2]
[398292478,1765500644524,-163.74498857,0.00031527,2]
[398292479,1765500644534,-500.0,0.00031527,2]
[398292480,1765500644544,-1000.0,0.00031527,2]
[398292481,1765500644553,-500.0,0.00031527,2]
[398292482,1765500644563,-250.0,0.00031527,2]
[398292483,1765500644573,-500.0,0.00031527,2]
[398292484,1765500644583,-1000.0,0.00031527,2]
[398292485,1765500644592,-500.0,0.00031527,2]
[398292486,1765500644601,-250.0,0.00031527,2]
[398292487,1765500644610,-500.0,0.00031527,2]
[398292488,1765500644620,-1000.0,0.00031527,2]
[398292489,1765500644629,-500.0,0.00031527,2]
[398292490,1765500644639,-250.0,0.00031527,2]
[398292491,1765500644649,-500.0,0.00031527,2]
[398292492,1765500644659,-500.0,0.00031527,2]
[398292493,1765500644668,-250.0,0.00031527,2]
[398292494,1765500644677,-250.0,0.00031527,2]
[398292495,1765500644687,-500.0,0.00031527,2]
[398292496,1765500644703,-250.0,0.00031527,2]
[398292497,1765500644712,-500.0,0.00031527,2]
[398292498,1765500644721,-250.0,0.00031527,2]
[398292499,1765500644730,-500.0,0.00031527,2]
[398292500,1765500644739,-250.0,0.00031527,2]
[398292501,1765500644748,-250.0,0.00031527,2]
[398292502,1765500644757,-250.0,0.00031527,2]
[398292503,1765500644766,-250.0,0.00031527,2]
[398292504,1765500644775,-620.0,0.00031527,2]
[398292505,1765500644784,-250.0,0.00031527,2]
[398292506,1765500644794,-250.0,0.00031527,2]
[398292507,1765500644804,-500.0,0.00031527,2]
[398292508,1765500644814,-250.0,0.00031527,2]
[398292509,1765500644823,-250.0,0.00031527,2]
[398292510,1765500644832,-500.0,0.00031527,2]
[398292511,1765500644841,-250.0,0.00031527,2]
[398292512,1765500644851,-250.0,0.00031527,2]
[398292513,1765500644861,-500.0,0.00031527,2]
[398292514,1765500644872,-250.0,0.00031527,2]
[398292515,1765500644882,-250.0,0.00031527,2]
[398292516,1765500644892,-500.0,0.00031527,2]
[398292517,1765500644902,-250.0,0.00031527,2]
[398292518,1765500644911,-500.0,0.00031527,2]
[398292519,1765500644922,-250.0,0.00031527,2]
[398292520,1765500644931,-250.0,0.00031527,2]
[398292521,1765500644940,-250.0,0.00031527,2]
[398292522,1765500644949,-500.0,0.00031527,2]
[398292523,1765500644959,-250.0,0.00031527,2]
[398292524,1765500644968,-250.0,0.00031527,2]
[398292525,1765500644978,-500.0,0.00031527,2]
[398292526,1765500644987,-250.0,0.00031527,2]
[398292527,1765500644996,-500.0,0.00031527,2]
[398292528,1765500645007,-250.0,0.00031527,2]
[398292529,1765500645016,-500.0,0.00031527,2]
[398292530,1765500645026,-250.0,0.00031527,2]
[398292531,1765500645035,-500.0,0.00031527,2]
[398292532,1765500645045,-500.0,0.00031527,2]
[398292533,1765500645057,-500.0,0.00031527,2]
[398292534,1765500645067,-500.0,0.00031527,2]
[398292535,1765500645077,-500.0,0.00031527,2]
[398292536,1765500645087,-500.0,0.00031527,2]
[398292537,1765500645096,-500.0,0.00031527,2]
[398292538,1765500645106,-693.3919763,0.00031527,2]
[398292539,1765500645115,-500.0,0.00031527,2]
[398292540,1765500645125,-500.0,0.00031527,2]
[398292541,1765500645134,-500.0,0.00031527,2]
[398292542,1765500645144,-500.0,0.00031527,2]
[398292543,1765500645153,-500.0,0.00031527,2]
[398292544,1765500645162,-500.0,0.00031527,2]
[398292545,1765500645172,-175.09,0.00031533,2]
[398292546,1765500645181,-152.0,0.00031548,3]
[398292547,1765500645190,-2334.00908332,0.00031625,2]
[398292548,1765500645200,-627.0,0.00031654,3]
[398292549,1765500645209,-5468.8,0.00031705,2]
[398292550,1765500645219,-627.0,0.00031791,3]
[398292551,1765500645228,-151.0,0.00031791,31]
[398292552,1765500645238,-200.0,0.00031816,2]
[398292553,1765500645247,-1445.42577978,0.00031891,2]
[398292554,1765500645257,-203.27582614,0.00031901,14]
[398292555,1765500645266,-1346.76,0.00031921,2]
[398292556,1765500645275,-831.0,0.00031922,5]
[398292557,1765500645285,-627.0,0.00031928,3]
[398292558,1765500645294,-180.06861533,0.00031932,8]
[398292559,1765500645303,-1000.0,0.0003195,2]
[398292560,1765500645313,-663.32399467,0.00031989,3]
[398292561,1765500645322,-500.0,0.00031999,45]
[398292562,1765500645331,-500.0,0.00031999,45]
[398292563,1765500645340,-500.0,0.00031999,45]
[398292564,1765500645349,-500.0,0.00031999,45]
[398292565,1765500645359,-500.0,0.00031999,45]
[398292566,1765500645368,-500.0,0.00031999,45]
[398292567,1765500645381,-500.0,0.00031999,45]
[398292568,1765500645391,-500.0,0.00031999,45]
[398292569,1765500645401,-500.0,0.00031999,45]
[398292570,1765500645411,-500.0,0.00031999,45]
[398292571,1765500645421,-500.0,0.00031999,45]
[398292572,1765500645431,-500.0,0.00031999,45]
[398292573,1765500645443,-500.0,0.00031999,45]
[398292574,1765500645454,-500.0,0.00031999,45]
[398292575,1765500645465,-500.0,0.00031999,45]
[398292576,1765500645475,-500.0,0.00031999,45]
[398292577,1765500645485,-500.0,0.00031999,45]
[398292578,1765500645495,-500.0,0.00031999,45]
[398292579,1765500645506,-500.0,0.00031999,45]
[398292580,1765500645516,-500.0,0.00031999,45]
[398292581,1765500645527,-500.0,0.00031999,45]
[398292582,1765500645537,-500.0,0.00031999,45]
[398292583,1765500645547,-500.0,0.00031999,45]
[398292584,1765500645557,-500.0,0.00031999,45]
[398292585,1765500645571,-500.0,0.00031999,45]
[398292586,1765500645580,-500.0,0.00031999,45]
[398292587,1765500645590,-500.0,0.00031999,45]
[398292588,1765500645600,-500.0,0.00031999,45]
[398292589,1765500645610,-500.0,0.00031999,45]
[398292590,1765500645619,-500.0,0.00031999,45]
[398292591,1765500645629,-500.0,0.00031999,45]
[398292592,1765500645638,-500.0,0.00031999,45]
[398292593,1765500645647,-500.0,0.00031999,45]
[398292594,1765500645657,-500.0,0.00031999,45]
[398292595,1765500645667,-500.0,0.00031999,45]
[398292596,1765500645677,-500.0,0.00031999,45]
[398292597,1765500645687,-500.0,0.00031999,45]
[398292598,1765500645696,-500.0,0.00031999,45]
[398292599,1765500645865,-500.0,0.00031999,45]
[398292600,1765500645884,-500.0,0.00031999,45]
[398292601,1765500645894,-500.0,0.00031999,45]
[398292602,1765500645903,-500.0,0.00031999,45]
[398292603,1765500645913,-500.0,0.00031999,45]
[398292604,1765500645922,-500.0,0.00031999,45]
[398292605,1765500645931,-500.0,0.00031999,45]
[398292606,1765500645941,-500.0,0.00031999,45]
[398292607,1765500645950,-500.0,0.00031999,45]
[398292608,1765500645959,-500.0,0.00031999,45]
[398292609,1765500645968,-500.0,0.00031999,45]
[398292610,1765500645978,-500.0,0.00031999,45]
[398292611,1765500645987,-500.0,0.00031999,45]
[398292612,1765500645996,-500.0,0.00031999,45]
[398292613,1765500646005,-500.0,0.00031999,45]
[398292614,1765500646015,-500.0,0.00031999,45]
[398292615,1765500646027,-500.0,0.00031999,45]
[398292616,1765500646036,-500.0,0.00031999,45]
[398292617,1765500646046,-500.0,0.00031999,45]
[398292618,1765500646055,-500.0,0.00031999,45]
[398292619,1765500646065,-500.0,0.00031999,45]
[398292620,1765500646074,-500.0,0.00031999,45]
[398292621,1765500646084,-500.0,0.00031999,45]
[398292622,1765500646093,-500.0,0.00031999,45]
[398292623,1765500646103,-500.0,0.00031999,45]
[398292624,1765500646113,-500.0,0.00031999,45]
[398292625,1765500646122,-500.0,0.00031999,45]
[398292626,1765500646131,-500.0,0.00031999,45]
[398292627,1765500646141,-500.0,0.00031999,45]
[398292628,1765500646150,-500.0,0.00031999,45]
[398292629,1765500646159,-500.0,0.00031999,45]
[398292630,1765500646168,-500.0,0.00031999,45]
[398292632,1765500646177,-500.0,0.00031999,45]
[398292634,1765500646186,-500.0,0.00031999,45]
[398292636,1765500646195,-500.0,0.00031999,45]
[398292638,1765500646205,-500.0,0.00031999,45]
[398292640,1765500646214,-500.0,0.00031999,45]
[398292642,1765500646224,-500.0,0.00031999,45]
[398292644,1765500646233,-500.0,0.00031999,45]
[398292646,1765500646246,-500.0,0.00031999,45]
[398292648,1765500646262,-500.0,0.00031999,45]
[398292650,1765500646271,-500.0,0.00031999,45]
[398292652,1765500646280,-211.32874541,0.00032,120]
[398292654,1765500646289,-178.84196588,0.00032,120]
[398292656,1765500646298,-164.63,0.00032,90]
[398292658,1765500646314,-2871.75675269,0.00032,30]
[398292660,1765500646325,-1478.03,0.00032,120]
[398292662,1765500646334,-1478.03,0.00032028,120]
[398292665,1765500646344,-275.46962926,0.00032047,18]
[398292667,1765500646354,-1478.03,0.00032058,120]
[398292668,1765500646363,-627.0,0.00032065,3]
[398292670,1765500646375,-151.0,0.00032075,2]
[398292672,1765500646384,-153.04245017,0.00032075,2]
[398292674,1765500646394,-151.0,0.00032075,2]
[398292676,1765500646403,-1606.0,0.00032075,2]
[398292678,1765500646413,-595.37131296,0.00032075,2]
[398292680,1765500646423,-719.04747942,0.00032075,2]
[398292682,1765500646432,-1478.03,0.00032089,120]
[398292683,1765500646441,-1478.03,0.00032122,120]
[398292684,1765500646453,-310.64,0.00032146,2]
[398292685,1765500646463,-1478.03,0.00032157,120]
[398292686,1765500646474,-1478.03,0.00032194,120]
[398292687,1765500646483,-627.0,0.00032202,3]
[398292688,1765500646493,-1478.03,0.00032234,120]
[398292689,1765500646503,-1478.03,0.00032276,120]
[398292690,1765500646512,-1478.03,0.00032321,120]
[398292691,1765500646522,-627.0,0.00032339,3]
[398292692,1765500646531,-1478.03,0.0003237,120]
[398292693,1765500646541,-1478.03,0.00032423,120]
[398292694,1765500646550,-627.0,0.00032476,3]
[398292695,1765500646560,-1478.03,0.00032481,120]
[398292696,1765500646572,-210.13,0.00032529,2]
[398292697,1765500646582,-1478.03,0.00032545,120]
[398292698,1765500646591,-290.0,0.00032571,30]
[398292699,1765500646601,-2641.5,0.000326,30]
[398292700,1765500646610,-627.0,0.00032613,3]
[398292701,1765500646620,-663.32399467,0.00032613,3]
[398292702,1765500646631,-1478.03,0.00032617,120]
[398292703,1765500646641,-151.0,0.00032623,2]
[398292704,1765500646651,-151.0,0.00032623,2]
[398292705,1765500646660,-1606.0,0.00032623,2]
[398292706,1765500646670,-617.40005154,0.00032623,2]
[398292707,1765500646680,-745.65223616,0.00032623,2]
[398292708,1765500646690,-1478.03,0.00032699,120]
[398292709,1765500646700,-166.66,0.00032729,2]
[398292710,1765500646710,-627.0,0.0003275,3]
[398292711,1765500646719,-333.01052978,0.00032777,2]
[398292712,1765500646729,-2000.0,0.00032777,120]
[398292713,1765500646738,-1478.03,0.00032793,120]
[398292714,1765500646747,-1000.0,0.000328,31]
[398292715,1765500646756,-164.0,0.000328,31]
[398292716,1765500646766,-164.0,0.000328,120]
[398292717,1765500646775,-500.0,0.00032849,30]
[398292718,1765500646785,-500.0,0.00032849,30]
[398292719,1765500646795,-500.0,0.00032849,30]
[398292720,1765500646804,-500.0,0.00032849,30]
[398292721,1765500646815,-500.0,0.00032849,30]
[398292722,1765500646825,-500.0,0.00032849,30]
[398292723,1765500646835,-500.0,0.00032849,30]
[398292724,1765500646844,-500.0,0.00032849,30]
[398292725,1765500646854,-500.0,0.00032849,30]
[398292726,1765500646863,-500.0,0.00032849,30]
[398292727,1765500646873,-500.0,0.00032849,30]
[398292728,1765500646882,-500.0,0.00032849,30]
[398292729,1765500646891,-500.0,0.00032849,30]
[398292730,1765500646901,-500.0,0.00032849,30]
[398292731,1765500646911,-500.0,0.00032849,30]
[398292732,1765500646920,-176.0,0.00032849,30]
[398292733,1765500646930,-152.0,0.00032865,4]
[398292734,1765500646939,-6633.2399467,0.00032867,3]
[398292735,1765500646948,-607.40485815,0.00032867,2]
[398292736,1765500646958,-511.15337826,0.00032876,30]
[398292737,1765500646967,-500.0,0.00032876,30]
[398292738,1765500646977,-500.0,0.00032876,30]
[398292739,1765500646986,-2641.5,0.00032876,30]
[398292740,1765500646996,-2641.5,0.00032876,30]
[398292741,1765500647005,-1332.37,0.00032876,120]
[398292742,1765500647015,-108068.71776253,0.00032877,2]
[398292743,1765500647024,-151.0,0.00032877,31]
[398292744,1765500647034,-247.267184,0.00032877,31]
[398292745,1765500647043,-247.267184,0.00032877,31]
[398292746,1765500647052,-247.267184,0.00032877,31]
[398292747,1765500647063,-247.267184,0.00032877,31]
[398292748,1765500647072,-247.267184,0.00032877,31]
[398292749,1765500647082,-151.0,0.00032877,30]
[398292750,1765500647091,-247.267184,0.00032877,31]
[398292751,1765500647101,-151.0,0.00032877,30]
[398292752,1765500647110,-247.267184,0.00032877,31]
[398292753,1765500647119,-151.0,0.00032877,30]
[398292754,1765500647128,-151.0,0.00032877,31]
[398292755,1765500647138,-247.267184,0.00032877,31]
[398292756,1765500647147,-151.0,0.00032877,30]
[398292757,1765500647156,-151.0,0.00032877,31]
[398292758,1765500647165,-247.267184,0.00032877,31]
[398292759,1765500647175,-156.350601,0.00032877,30]
[398292760,1765500647184,-151.0,0.00032877,31]
[398292761,1765500647193,-151.0,0.00032877,31]
[398292762,1765500647203,-247.267184,0.00032877,31]
[398292763,1765500647212,-247.267184,0.00032877,31]
[398292764,1765500647221,-247.267184,0.00032877,31]
[398292765,1765500647231,-247.267184,0.00032877,31]
[398292766,1765500647240,-247.267184,0.00032877,31]
[398292767,1765500647249,-247.267184,0.00032877,31]
[398292768,1765500647259,-247.267184,0.00032877,31]